fUSD/lending_fUSD_20260224
["ID","MTS","AMOUNT","RATE_DAILY","PERIOD"]
[406592522,1771966026610,-150.0,0.00045559,120]
[406592523,1771966027133,3623.98782905,0.00045559,30]
[406592524,1771966027192,5737.24089036,0.00045559,30]
[406592525,1771966027260,355.53,0.00045559,120]
[406592526,1771966028329,906.0,0.00045559,30]
[406592528,1771966037600,-150.0,0.00023866,120]
[406592529,1771966037650,-158.38200706,0.00023866,120]
[406592530,1771966037711,-738.43711839,0.00029451,30]
[406592531,1771966037766,-6858.66602024,0.000296,30]
[406592532,1771966037830,-783.93483373,0.00030118,30]
[406592533,1771966037885,-165.12,0.000302,30]
[406592534,1771966037939,-7226.65192008,0.00030596,30]
[406592535,1771966037991,-823.36618702,0.00030785,30]
[406592536,1771966038042,-160.0,0.00031,30]
[406592537,1771966038091,-173.87087054,0.00031,30]
[406592538,1771966038139,-167.15607918,0.00032,120]
[406592539,1771966038187,-164.01584354,0.00032,120]
[406592540,1771966038234,-184.7789246,0.00032,120]
[406592541,1771966038281,-1237.69,0.00032,120]
[406592542,1771966038330,-917.39479872,0.00032118,30]
[406592543,1771966038384,-993.22432429,0.00032785,30]
[406592544,1771966038431,-167.15607918,0.00033,120]
[406592545,1771966038477,-164.01584354,0.00033,120]
[406592546,1771966038526,-165.12,0.000333,30]
[406592547,1771966038577,-1023.55613452,0.00033452,30]
[406592548,1771966038624,-167.15607918,0.000339,120]
[406592549,1771966038670,-164.01584354,0.000339,120]
[406592550,1771966038720,-1078.15339292,0.00034119,30]
[406592551,1771966038771,-1102.41884111,0.00034786,30]
[406592552,1771966038824,-1163.08246156,0.00035453,30]
[406592553,1771966038876,-151.0,0.00035467,31]
[406592554,1771966038926,-151.0,0.00035563,31]
[406592555,1771966038976,-151.0,0.00035563,31]
[406592556,1771966039023,-151.0,0.00035563,31]
[406592557,1771966039070,-151.0,0.00035563,31]
[406592558,1771966039117,-151.0,0.0003561,31]
[406592559,1771966039167,-151.0,0.0003561,31]
[406592560,1771966039213,-151.0,0.0003561,31]
[406592561,1771966039259,-151.0,0.0003561,31]
[406592562,1771966039307,-151.0,0.0003561,31]
[406592563,1771966039360,-151.0,0.0003561,31]
[406592564,1771966039408,-151.0,0.00036,30]
[406592565,1771966039454,-228.0,0.00036,30]
[406592566,1771966039501,-165.12,0.000364,30]
[406592567,1771966039551,-326.68600993,0.00036445,30]
[406592568,1771966039603,-181.61613088,0.000372,120]
[406592569,1771966039656,-356.13367826,0.00037435,30]
[406592570,1771966039852,-313.74094307,0.0003745,30]
[406592571,1771966039909,-1260.14425428,0.00037454,30]
[406592572,1771966039977,-1332.94059883,0.00038121,30]
[406592573,1771966040028,-240.15036897,0.00038356,60]
[406592574,1771966040088,-1339.00696087,0.00038788,30]
[406592575,1771966040162,-1162.72,0.000392,30]
[406592576,1771966040237,-1417.86966746,0.00039455,30]
[406592577,1771966040297,-274.406,0.00039491,55]
[406592578,1771966040350,-2111.585,0.00039491,55]
[406592579,1771966040403,-253.67439075,0.00039686,30]
[406592580,1771966040453,-154.0,0.0004,120]
[406592581,1771966040502,-324.0,0.00040464,120]
[406592582,1771966040550,-158.0,0.00040559,120]
[406592583,1771966040601,-165.12,0.000406,30]
[406592584,1771966040649,-4308.0,0.0004095,60]
[406592585,1771966040704,-151.0,0.00041096,120]
[406592586,1771966040753,-151.0,0.00041096,120]
[406592587,1771966040803,-213.594063,0.00041096,120]
[406592588,1771966040851,-151.0,0.00041096,120]
[406592589,1771966040899,-151.0,0.00041096,120]
[406592590,1771966040946,-155.767299,0.00041096,120]
[406592591,1771966040995,-151.0,0.00041096,120]
[406592592,1771966041042,-262.696171,0.00041096,120]
[406592593,1771966041085,-151.0,0.00041096,120]
[406592594,1771966041127,-151.0,0.00041096,120]
[406592595,1771966041172,-151.0,0.00041096,120]
[406592596,1771966041220,-151.0,0.00041096,120]
[406592597,1771966041265,-248.796253,0.00041096,120]
[406592598,1771966041310,-189.378661,0.00041096,120]
[406592599,1771966041358,-151.0,0.00041096,120]
[406592600,1771966041405,-151.0,0.00041096,120]
[406592601,1771966041456,-151.0,0.00041096,120]
[406592602,1771966041510,-151.0,0.00041096,120]
[406592603,1771966041564,-151.0,0.00041096,120]
[406592604,1771966041617,-151.0,0.00041096,120]
[406592605,1771966041666,-151.0,0.00041096,120]
[406592606,1771966041717,-151.0,0.00041096,120]
[406592607,1771966041765,-151.0,0.00041096,120]
[406592608,1771966041814,-204.933854,0.00041096,120]
[406592609,1771966041863,-386.467603,0.00041096,120]
[406592610,1771966041913,-386.467603,0.00041096,120]
[406592611,1771966041963,-386.467603,0.00041096,120]
[406592612,1771966042014,-386.467603,0.00041096,120]
[406592613,1771966042068,-386.467603,0.00041096,120]
[406592614,1771966042123,-386.467603,0.00041096,120]
[406592615,1771966042173,-386.467603,0.00041096,120]
[406592616,1771966042224,-386.467603,0.00041096,120]
[406592617,1771966042275,-386.467603,0.00041096,120]
[406592618,1771966042325,-386.467603,0.00041096,120]
[406592619,1771966042377,-386.467603,0.00041096,120]
[406592620,1771966042429,-386.467603,0.00041096,120]
[406592621,1771966042479,-161.15699,0.00041096,120]
[406592622,1771966042527,-253.373556,0.00041096,60]
[406592623,1771966042577,-253.373556,0.00041096,60]
[406592624,1771966042628,-253.373556,0.00041096,60]
[406592625,1771966042679,-253.373556,0.00041096,60]
[406592626,1771966042729,-253.373556,0.00041096,60]
[406592627,1771966042777,-253.373556,0.00041096,60]
[406592628,1771966042825,-253.373556,0.00041096,60]
[406592629,1771966042873,-253.373556,0.00041096,60]
[406592630,1771966042922,-253.373556,0.00041096,60]
[406592631,1771966042973,-253.373556,0.00041096,60]
[406592632,1771966043024,-253.373556,0.00041096,60]
[406592633,1771966043076,-253.373556,0.00041096,60]
[406592634,1771966043128,-151.0,0.00041096,120]
[406592635,1771966043180,-151.0,0.00041096,120]
[406592636,1771966043230,-151.0,0.00041096,120]
[406592637,1771966043280,-151.0,0.00041096,120]
[406592638,1771966043331,-151.0,0.00041096,120]
[406592639,1771966043510,-151.0,0.00041096,120]
[406592640,1771966043564,-151.0,0.00041096,120]
[406592641,1771966043626,-268.195608,0.00041096,120]
[406592642,1771966043677,-175.742309,0.00041096,120]
[406592643,1771966043730,-151.0,0.00041096,120]
[406592644,1771966043786,-151.0,0.00041096,120]
[406592645,1771966043842,-151.0,0.00041096,120]
[406592646,1771966043896,-151.0,0.00041096,120]
[406592647,1771966043950,-151.0,0.00041096,120]
[406592648,1771966044006,-151.0,0.00041096,120]
[406592649,1771966044063,-298.919489,0.00041096,120]
[406592650,1771966044117,-151.0,0.00041096,120]
[406592651,1771966044169,-260.348219,0.00041096,120]
[406592652,1771966044222,-258.112832,0.00041096,120]
[406592653,1771966044273,-194.832057,0.00041096,120]
[406592654,1771966044325,-151.0,0.00041096,31]
[406592655,1771966044375,-151.0,0.00041096,31]
[406592656,1771966044431,-151.0,0.00041096,31]
[406592657,1771966044481,-151.0,0.00041096,31]
[406592658,1771966044530,-151.0,0.00041096,31]
[406592659,1771966044580,-151.0,0.00041096,31]
[406592660,1771966044633,-151.0,0.00041096,120]
[406592661,1771966044684,-151.0,0.00041096,120]
[406592662,1771966044735,-151.0,0.00041096,120]
[406592663,1771966044787,-151.0,0.00041096,120]
[406592664,1771966044843,-151.000005,0.00041096,120]
[406592665,1771966044896,-150.0,0.00041096,60]
[406592666,1771966044950,-150.0,0.00041151,60]
[406592667,1771966045007,-253.43383125,0.00041206,60]
[406592668,1771966045060,-500.0,0.00041322,30]
[406592670,1771966045116,-356.13367826,0.00041394,30]
[406592671,1771966045168,-154.0,0.000414,120]
[406592672,1771966045219,-500.0,0.00041581,30]
[406592673,1771966045275,-1162.72,0.000422,30]
[406592674,1771966045326,-4308.0,0.000423,60]
[406592675,1771966045377,-286.85510482,0.00042329,30]
[406592676,1771966045428,-150.0,0.00042546,120]
[406592677,1771966045476,-176.82,0.00042546,30]
[406592678,1771966045526,-154.0,0.000428,120]
[406592679,1771966045577,-500.0,0.0004294,30]
[406592680,1771966045627,-2911.58,0.00043,30]
[406592681,1771966045679,-10000.0,0.00043,45]
[406592682,1771966045730,-151.0,0.00043116,120]
[406592683,1771966045781,-151.0,0.00043116,120]
[406592684,1771966045833,-5086113.538,0.00043119,30]
[406592685,1771966045885,-151.0,0.00043119,120]
[406592686,1771966045937,-151.0,0.00043119,120]
[406592687,1771966045992,-151.0,0.00043119,120]
[406592688,1771966046043,-151.0,0.00043119,120]
[406592689,1771966046094,-151.0,0.00043119,120]
[406592690,1771966046151,-256.047177,0.00043119,120]
[406592691,1771966046201,-256.047177,0.00043119,120]
[406592692,1771966046254,-256.047177,0.00043119,120]
[406592693,1771966046304,-256.047177,0.00043119,120]
[406592694,1771966046353,-151.0,0.00043119,120]
[406592695,1771966046401,-151.0,0.00043119,120]
[406592696,1771966046451,-287.655164,0.00043119,120]
[406592697,1771966046503,-151.0,0.00043119,120]
[406592698,1771966046566,-160.949988,0.00043119,120]
[406592699,1771966046618,-678.07044,0.00043119,120]
[406592700,1771966046669,-678.07044,0.00043119,120]
[406592701,1771966046720,-678.07044,0.00043119,120]
[406592702,1771966046771,-678.07044,0.00043119,120]
[406592703,1771966046820,-1842.537151,0.00043119,120]
[406592704,1771966046868,-1842.537151,0.00043119,120]
[406592705,1771966046918,-1842.537151,0.00043119,120]
[406592706,1771966046969,-1842.537151,0.00043119,120]
[406592707,1771966047020,-151.0,0.00043119,120]
[406592708,1771966047256,-151.0,0.00043119,120]
[406592709,1771966047308,-334.026674,0.00043119,120]
[406592710,1771966047357,-334.026674,0.00043119,120]
[406592711,1771966047410,-334.026674,0.00043119,120]
[406592712,1771966047457,-334.026674,0.00043119,120]
[406592713,1771966047502,-280.996893,0.00043119,120]
[406592714,1771966047552,-280.996893,0.00043119,120]
[406592715,1771966047607,-280.996893,0.00043119,120]
[406592716,1771966047659,-280.996893,0.00043119,120]
[406592717,1771966047710,-151.0,0.00043119,120]
[406592718,1771966047764,-151.0,0.00043119,120]
[406592719,1771966047818,-151.0,0.00043119,120]
[406592720,1771966047871,-386.467603,0.00043119,120]
[406592721,1771966047930,-386.467603,0.00043119,120]
[406592722,1771966047983,-386.467603,0.00043119,120]
[406592723,1771966048037,-386.467603,0.00043119,120]
[406592724,1771966048091,-548.092351,0.00043119,120]
[406592725,1771966048144,-548.092351,0.00043119,120]
[406592726,1771966048197,-548.092351,0.00043119,120]
[406592727,1771966048247,-548.092351,0.00043119,120]
[406592728,1771966048299,-151.0,0.00043119,120]
[406592729,1771966048353,-151.0,0.00043119,120]
[406592730,1771966048404,-253.373556,0.00043119,60]
[406592731,1771966048456,-253.373556,0.00043119,60]
[406592732,1771966048507,-253.373556,0.00043119,60]
[406592733,1771966048558,-253.373556,0.00043119,60]
[406592734,1771966048610,-151.0,0.00043119,120]
[406592735,1771966048663,-151.00001,0.00043119,120]
[406592736,1771966048715,-1819.962783,0.00043119,120]
[406592737,1771966048765,-1819.962783,0.00043119,120]
[406592738,1771966048816,-1819.962783,0.00043119,120]
[406592739,1771966048870,-1819.962783,0.00043119,120]
[406592740,1771966048922,-151.0,0.00043119,120]
[406592741,1771966048971,-242.722816,0.00043119,60]
[406592742,1771966049022,-151.0,0.00043119,120]
[406592743,1771966049073,-151.0,0.00043119,120]
[406592744,1771966049121,-151.0,0.00043119,120]
[406592745,1771966049172,-151.0,0.00043119,31]
[406592746,1771966049222,-199.634914,0.00043119,31]
[406592747,1771966049273,-151.0,0.00043119,120]
[406592748,1771966049322,-151.0,0.00043123,120]
[406592749,1771966049370,-151.0,0.00043123,120]
[406592750,1771966049418,-151.0,0.00043123,120]
[406592751,1771966049468,-151.0,0.00043123,120]
[406592752,1771966049517,-151.0,0.00043123,120]
[406592753,1771966049567,-151.0,0.00043123,120]
[406592754,1771966049618,-151.0,0.00043123,120]
[406592755,1771966049668,-151.0,0.00043123,120]
[406592756,1771966049718,-151.0,0.00043123,120]
[406592757,1771966049768,-151.0,0.00043123,120]
[406592758,1771966049818,-500.86884982,0.00043204,30]
[406592759,1771966049869,-4308.0,0.0004365,60]
[406592760,1771966049921,-150.0,0.00043685,120]
[406592761,1771966049972,-900.0,0.00043693,30]
[406592762,1771966050024,-151.0,0.00043836,120]
[406592763,1771966050077,-151.0,0.00043836,120]
[406592764,1771966050127,-151.0,0.00043836,120]
[406592765,1771966050177,-151.0,0.00043836,120]
[406592766,1771966050226,-151.0,0.00043836,120]
[406592767,1771966050274,-151.0,0.00043836,120]
[406592768,1771966050322,-151.0,0.00043836,120]
[406592769,1771966050371,-151.0,0.00043836,120]
[406592770,1771966050420,-151.0,0.00043836,120]
[406592771,1771966050468,-151.0,0.00043836,120]
[406592772,1771966050517,-151.0,0.00043836,120]
[406592773,1771966050566,-188.188828,0.00043836,120]
[406592774,1771966050744,-156.34,0.00043836,120]
[406592775,1771966050796,-575.50353051,0.00043836,120]
[406592776,1771966050845,-12273.92176562,0.00044,120]
[406592777,1771966050893,-150.0,0.00044158,120]
[406592778,1771966050940,-414.79,0.00044159,120]
[406592779,1771966050992,-154.0,0.000443,120]
[406592780,1771966051043,-150.0,0.00044549,30]
[406592781,1771966051094,-150.0,0.00044549,30]
[406592782,1771966051145,-150.0,0.00044549,30]
[406592783,1771966051192,-150.0,0.00044549,30]
[406592784,1771966051240,-150.0,0.00044549,30]
[406592785,1771966051286,-150.0,0.00044549,30]
[406592786,1771966051331,-150.0,0.00044549,30]
[406592787,1771966051376,-150.0,0.00044549,30]
[406592788,1771966051424,-150.78067952,0.00044549,30]
[406592789,1771966051468,-150.0,0.00044549,30]
[406592790,1771966051513,-150.91920927,0.00044549,30]
[406592791,1771966051561,-150.0,0.00044549,30]
[406592792,1771966051612,-150.0,0.00044549,30]
[406592793,1771966051661,-474.61,0.000447,120]
[406592794,1771966051709,-1737.43,0.00044932,120]
[406592795,1771966051757,-4308.0,0.00045,60]
[406592796,1771966051808,-1581.7714188,0.00045,120]
[406592797,1771966051856,-482.9,0.00045,30]
[406592798,1771966051905,-150.0,0.00045099,30]
[406592799,1771966051954,-517.38293855,0.00045205,120]
[406592800,1771966052004,-500.0,0.00045205,120]
[406592801,1771966052055,-500.0,0.00045205,120]
[406592802,1771966052104,-500.0,0.00045205,120]
[406592803,1771966052153,-500.0,0.00045205,120]
[406592804,1771966052203,-500.0,0.00045205,120]
[406592805,1771966052252,-500.0,0.00045205,120]
[406592806,1771966052302,-500.0,0.00045205,120]
[406592807,1771966052354,-500.0,0.00045205,120]
[406592808,1771966052402,-500.0,0.00045205,120]
[406592809,1771966052450,-500.0,0.00045205,120]
[406592810,1771966052497,-500.0,0.00045205,120]
[406592811,1771966052542,-500.0,0.00045205,120]
[406592812,1771966052589,-500.0,0.00045205,120]
[406592813,1771966052636,-614.31912427,0.00045205,120]
[406592814,1771966052683,-353.89994712,0.00045205,120]
[406592815,1771966052729,-500.0,0.00045205,120]
[406592816,1771966052780,-500.0,0.00045205,120]
[406592817,1771966052831,-500.0,0.00045205,120]
[406592818,1771966052880,-500.0,0.00045205,120]
[406592819,1771966052928,-500.0,0.00045205,120]
[406592820,1771966052980,-500.0,0.00045205,120]
[406592821,1771966053033,-500.0,0.00045205,120]
[406592822,1771966053086,-500.0,0.00045205,120]
[406592823,1771966053135,-500.0,0.00045205,120]
[406592824,1771966053186,-500.0,0.00045205,120]
[406592825,1771966053236,-500.0,0.00045205,120]
[406592826,1771966053286,-500.0,0.00045205,120]
[406592827,1771966053338,-500.0,0.00045205,120]
[406592828,1771966053393,-500.0,0.00045205,120]
[406592829,1771966053442,-500.0,0.00045205,120]
[406592830,1771966053490,-500.0,0.00045205,120]
[406592831,1771966053538,-500.0,0.00045205,120]
[406592832,1771966053588,-475.76115804,0.00045205,120]
[406592833,1771966053639,-569.76809954,0.00045205,120]
[406592834,1771966053690,-500.0,0.00045205,120]
[406592835,1771966053739,-500.0,0.00045205,120]
[406592836,1771966053789,-500.0,0.00045205,120]
[406592837,1771966053839,-500.0,0.00045205,120]
[406592838,1771966054012,-479.96229716,0.00045205,120]
[406592839,1771966054067,-500.0,0.00045205,120]
[406592840,1771966054116,-500.0,0.00045205,120]
[406592841,1771966054166,-500.0,0.00045205,120]
[406592842,1771966054216,-500.0,0.00045205,120]
[406592843,1771966054266,-242.64789461,0.00045205,60]
[406592844,1771966054316,-500.0,0.00045205,120]
[406592845,1771966054364,-242.64789461,0.00045205,60]
[406592846,1771966054412,-500.0,0.00045205,120]
[406592847,1771966054461,-242.64789461,0.00045205,60]
[406592848,1771966054510,-500.0,0.00045205,120]
[406592849,1771966054560,-211.87679331,0.00045205,60]
[406592850,1771966054611,-500.0,0.00045205,120]
[406592851,1771966054661,-500.0,0.00045205,120]
[406592852,1771966054711,-500.0,0.00045205,120]
[406592853,1771966054759,-500.0,0.00045205,120]
[406592854,1771966054806,-500.0,0.00045205,120]
[406592855,1771966054853,-500.0,0.00045205,120]
[406592856,1771966054901,-500.0,0.00045205,120]
[406592857,1771966054952,-500.0,0.00045205,120]
[406592858,1771966055002,-500.0,0.00045205,120]
[406592859,1771966055055,-500.0,0.00045205,120]
[406592860,1771966055106,-500.0,0.00045205,120]
[406592861,1771966055161,-500.0,0.00045205,120]
[406592862,1771966055211,-500.0,0.00045205,120]
[406592863,1771966055261,-500.0,0.00045205,120]
[406592864,1771966055310,-500.0,0.00045205,120]
[406592865,1771966055361,-163.08678051,0.00045205,120]
[406592866,1771966055410,-432.27,0.00045205,120]
[406592867,1771966055460,-994.23,0.00045205,120]
[406592868,1771966055508,-994.23,0.00045205,120]
[406592869,1771966055558,-994.23,0.00045205,120]
[406592870,1771966055610,-994.23,0.00045205,120]
[406592871,1771966055660,-994.23,0.00045205,120]
[406592872,1771966055709,-994.23,0.00045205,120]
[406592873,1771966055759,-500.0,0.00045205,120]
[406592874,1771966055810,-994.23,0.00045205,120]
[406592875,1771966055861,-500.0,0.00045205,120]
[406592876,1771966055912,-994.23,0.00045205,120]
[406592877,1771966055962,-623.23918215,0.00045205,120]
[406592878,1771966056015,-994.23,0.00045205,120]
[406592879,1771966056068,-994.23,0.00045205,120]
[406592880,1771966056119,-521.77630031,0.00045205,30]
[406592881,1771966056170,-500.0,0.00045205,120]
[406592882,1771966056223,-994.23,0.00045205,120]
[406592883,1771966056275,-500.0,0.00045205,120]
[406592884,1771966056325,-994.23,0.00045205,120]
[406592885,1771966056373,-500.0,0.00045205,120]
[406592886,1771966056423,-507.71444212,0.00045205,120]
[406592887,1771966056473,-994.23,0.00045205,120]
[406592888,1771966056523,-994.23,0.00045205,120]
[406592889,1771966056572,-994.23,0.00045205,120]
[406592890,1771966056624,-994.23,0.00045205,120]
[406592891,1771966056673,-994.23,0.00045205,120]
[406592892,1771966056723,-994.23,0.00045205,120]
[406592893,1771966056771,-994.23,0.00045205,120]
[406592894,1771966056823,-994.23,0.00045205,120]
[406592895,1771966056871,-994.23,0.00045205,120]
[406592896,1771966056922,-994.23,0.00045205,120]
[406592897,1771966056971,-1757.24,0.00045205,120]
[406592898,1771966057022,-994.23,0.00045205,120]
[406592899,1771966057072,-1757.24,0.00045205,120]
[406592900,1771966057244,-994.45533028,0.00045205,120]
[406592901,1771966057295,-1757.24,0.00045205,120]
[406592902,1771966057345,-1757.24,0.00045205,120]
[406592903,1771966057400,-1757.24,0.00045205,120]
[406592904,1771966057451,-1757.24,0.00045205,120]
[406592905,1771966057502,-1757.24,0.00045205,120]
[406592906,1771966057552,-1757.24,0.00045205,120]
[406592907,1771966057601,-1757.24,0.00045205,120]
[406592908,1771966057651,-1757.24,0.00045205,120]
[406592909,1771966057700,-1757.24,0.00045205,120]
[406592910,1771966057749,-1757.24,0.00045205,120]
[406592911,1771966057797,-1757.24,0.00045205,120]
[406592912,1771966057844,-1757.24,0.00045205,120]
[406592913,1771966057892,-1757.24,0.00045205,120]
[406592914,1771966057940,-1757.24,0.00045205,120]
[406592915,1771966057988,-1757.24,0.00045205,120]
[406592916,1771966058039,-1757.24,0.00045205,120]
[406592917,1771966058091,-1757.24,0.00045205,120]
[406592918,1771966058141,-1757.24,0.00045205,120]
[406592919,1771966058192,-1757.24,0.00045205,120]
[406592920,1771966058243,-500.0,0.00045205,120]
[406592921,1771966058295,-1757.24,0.00045205,120]
[406592922,1771966058347,-500.0,0.00045205,120]
[406592923,1771966058402,-1757.24,0.00045205,120]
[406592924,1771966058452,-500.0,0.00045205,120]
[406592925,1771966058504,-1757.36026134,0.00045205,120]
[406592926,1771966058556,-500.0,0.00045205,120]
[406592927,1771966058607,-500.0,0.00045205,120]
[406592928,1771966058660,-500.0,0.00045205,120]
[406592929,1771966058714,-500.0,0.00045205,120]
[406592930,1771966058771,-500.0,0.00045205,120]
[406592931,1771966058827,-500.0,0.00045205,120]
[406592932,1771966058878,-500.0,0.00045205,120]
[406592933,1771966058933,-500.0,0.00045205,120]
[406592934,1771966058987,-500.0,0.00045205,120]
[406592935,1771966059041,-500.0,0.00045205,120]
[406592936,1771966059092,-500.0,0.00045205,120]
[406592937,1771966059141,-500.0,0.00045205,120]
[406592938,1771966059192,-500.0,0.00045205,120]
[406592939,1771966059243,-500.0,0.00045205,120]
[406592940,1771966059294,-500.0,0.00045205,120]
[406592941,1771966059345,-500.0,0.00045205,120]
[406592942,1771966059402,-500.0,0.00045205,120]
[406592943,1771966059453,-500.0,0.00045205,120]
[406592944,1771966059504,-500.0,0.00045205,120]
[406592945,1771966059555,-500.0,0.00045205,120]
[406592946,1771966059608,-500.0,0.00045205,120]
[406592947,1771966059657,-500.0,0.00045205,120]
[406592948,1771966059707,-500.0,0.00045205,120]
[406592949,1771966059757,-165.33960758,0.00045205,120]
[406592950,1771966059808,-500.0,0.00045205,120]
[406592951,1771966059858,-500.0,0.00045205,120]
[406592952,1771966059908,-500.0,0.00045205,120]
[406592953,1771966059958,-500.0,0.00045205,120]
[406592954,1771966060007,-605.83819696,0.00045205,120]
[406592955,1771966060057,-500.0,0.00045205,120]
[406592956,1771966060105,-500.0,0.00045205,120]
[406592957,1771966060152,-500.0,0.00045205,120]
[406592958,1771966060198,-500.0,0.00045205,120]
[406592959,1771966060245,-500.0,0.00045205,120]
[406592960,1771966060410,-500.0,0.00045205,120]
[406592961,1771966060461,-500.0,0.00045205,120]
[406592962,1771966060508,-355.1357149,0.00045205,120]
[406592963,1771966060555,-515.75840565,0.00045205,120]
[406592964,1771966060605,-500.0,0.00045205,120]
[406592965,1771966060654,-500.0,0.00045205,120]
[406592966,1771966060702,-500.0,0.00045205,120]
[406592967,1771966060751,-500.0,0.00045205,120]
[406592968,1771966060798,-500.0,0.00045205,120]
[406592969,1771966060845,-500.0,0.00045205,120]
[406592970,1771966060891,-500.0,0.00045205,120]
[406592971,1771966060950,-500.0,0.00045205,120]
[406592972,1771966061002,-500.0,0.00045205,120]
[406592973,1771966061051,-500.0,0.00045205,120]
[406592974,1771966061100,-383.11296728,0.00045205,120]
[406592975,1771966061147,-500.0,0.00045205,120]
[406592976,1771966061196,-500.0,0.00045205,120]
[406592977,1771966061250,-500.0,0.00045205,120]
[406592978,1771966061297,-500.0,0.00045205,120]
[406592979,1771966061343,-500.0,0.00045205,120]
[406592980,1771966061394,-500.0,0.00045205,120]
[406592981,1771966061442,-500.0,0.00045205,120]
[406592982,1771966061487,-500.0,0.00045205,120]
[406592983,1771966061532,-500.0,0.00045205,120]
[406592984,1771966061580,-500.0,0.00045205,120]
[406592985,1771966061631,-500.0,0.00045205,120]
[406592986,1771966061679,-500.0,0.00045205,120]
[406592987,1771966061727,-357.67407865,0.00045205,120]
[406592988,1771966061774,-393.56943477,0.00045205,120]
[406592989,1771966061820,-500.0,0.00045205,120]
[406592990,1771966061866,-583.57436998,0.00045205,120]
[406592991,1771966061913,-507.54702237,0.00045205,120]
[406592992,1771966061966,-583.25899739,0.00045205,120]
[406592993,1771966062018,-500.0,0.00045205,120]
[406592994,1771966062066,-500.0,0.00045205,120]
[406592995,1771966062114,-500.0,0.00045205,120]
[406592996,1771966062164,-500.0,0.00045205,120]
[406592997,1771966062212,-500.0,0.00045205,120]
[406592998,1771966062261,-500.0,0.00045205,120]
[406592999,1771966062308,-500.0,0.00045205,120]
[406593000,1771966062356,-500.0,0.00045205,120]
[406593001,1771966062408,-500.0,0.00045205,120]
[406593002,1771966062456,-500.0,0.00045205,120]
[406593003,1771966062506,-500.0,0.00045205,120]
[406593004,1771966062556,-500.0,0.00045205,120]
[406593005,1771966062603,-500.0,0.00045205,120]
[406593006,1771966062650,-507.74773138,0.00045205,120]
[406593007,1771966062697,-500.0,0.00045205,120]
[406593008,1771966062743,-500.0,0.00045205,120]
[406593009,1771966062789,-500.0,0.00045205,120]
[406593010,1771966062836,-500.0,0.00045205,120]
[406593011,1771966062883,-546.64837212,0.00045205,120]
[406593012,1771966062932,-500.0,0.00045205,120]
[406593013,1771966062981,-500.0,0.00045205,120]
[406593014,1771966063030,-500.0,0.00045205,120]
[406593015,1771966063078,-500.0,0.00045205,120]
[406593016,1771966063121,-500.0,0.00045205,120]
[406593017,1771966063168,-571.32383074,0.00045205,120]
[406593018,1771966063323,-523.25903021,0.00045205,120]
[406593019,1771966063379,-500.0,0.00045205,120]
[406593020,1771966063430,-500.0,0.00045205,120]
[406593021,1771966063479,-500.0,0.00045205,120]
[406593022,1771966063527,-500.0,0.00045205,120]
[406593023,1771966063582,-500.0,0.00045205,120]